Cogmind - Beta 12 X4 @@@ ROGUE MODE // 2022.12.25 @ 20:58:27 Player: deadnoob Result: Core destroyed Performance ------------- Evolutions (2) 1000 Regions Visited (6) 1200 Robots Destroyed (69) 345 Value Destroyed (2046) 2046 Prototype IDs (28) 560 Alien Tech Used (0) 0 Bonus (290) 290 TOTAL SCORE: 5441 Bonus ------- Aligned with FarCom 300 Friendly Fire -10 Cogmind --------- Core Integrity 0/550 Matter 106/300 Energy 500/500 System Corruption 0% Temperature Critical (522) Movement Treading (240) Ox1 Location -8/Storage Parts ------- > --- POWER (1) -------- F-cell Engine > --- PROPULSION (3) --- Light Treads Light Treads Light Treads > --- UTILITY (5) ------ Huge Storage Unit Improved Signal Interpreter Layered Light Armor Plating Layered Light Armor Plating Hacking Suite > --- WEAPON (2) ------- Heavy Ion Cannon Heavy Ion Cannon > --- INVENTORY (25) --- Light Treads Light Treads Light Treads High-capacity Storage Unit Superbattery (1500) High-capacity Matter Pod (200) Improved Sensor Array Transport Network Coupler Improved Medium Armor Plating Improved Medium Armor Plating Improved Medium Armor Plating Improved Medium Armor Plating Layered Light Armor Plating Long-range Tractor Beam Heavy Ion Cannon High-powered Shotgun High-powered Shotgun Grenade Launcher Grenade Launcher Improved Datajack Heavy Hammer Peak State ------------ > --- POWER ------------ F-cell Engine > --- PROPULSION ------- Light Treads Advanced Treads Improved VTOL Module > --- UTILITY ---------- Improved Heat Sink Huge Storage Unit Transport Network Coupler Layered Light Armor Plating Hacking Suite > --- WEAPON ----------- Heavy Ion Cannon Heavy Ion Cannon > --- INVENTORY -------- F-cell Engine Light Treads Light Treads Light Treads Light Treads Light Treads Light Treads Light Treads High-capacity Storage Unit Superbattery High-capacity Matter Pod Improved Sensor Array Improved Signal Interpreter Improved Medium Armor Plating Improved Medium Armor Plating Improved Medium Armor Plating Improved Medium Armor Plating Layered Light Armor Plating Layered Light Armor Plating Layered Light Armor Plating Long-range Tractor Beam Heavy Ion Cannon Grenade Launcher Grenade Launcher Improved Datajack [Rating: 41] Favorites ----------- Power F-cell Engine Engine F-cell Engine Power Core Light Nuclear Core Propulsion Light Treads Treads Light Treads Leg Carbon-fiber Leg Wheel Wheel Flight Unit Flight Unit Utility Transport Network Coupler Device Improved Heat Sink Storage Huge Storage Unit Processor Transport Network Coupler Hackware Hacking Suite Protection Layered Light Armor Plating Weapon Heavy Ion Cannon Energy Gun Small Laser Energy Cannon Heavy Ion Cannon Ballistic Gun Light Assault Rifle Launcher Grenade Launcher Build | -11 -10 -10 -10 -9 -8 -8 ------- Run | Scr Mat Min Exi Min Mat Sto Slots Evolved 4 | . . . . . 4 . Power . | . . . . . . . Propulsion 1 | . . . . . 1 . Utility 3 | . . . . . 3 . Weapon . | . . . . . . . Parts Attached 91 | 3 11 6 1 8 31 31 Power 9 | . 1 1 . 1 3 3 Engine 7 | . 1 1 . 1 2 2 Core 2 | . . . . . 1 1 Reactor . | . . . . . . . Propulsion 24 | 2 . 1 . 2 7 12 Treads 16 | 2 . 1 . . 2 11 Leg 1 | . . . . . 1 . Wheel 3 | . . . . . 3 . Hover . | . . . . . . . Flight 4 | . . . . 2 1 1 Utility 24 | . 4 2 . 1 10 7 Device 7 | . 2 1 . . 4 . Storage 4 | . . 1 . . 2 1 Processor 6 | . 2 . . 1 2 1 Hackware 1 | . . . . . 1 . Protection 6 | . . . . . 1 5 Artifact . | . . . . . . . Weapon 34 | 1 6 2 1 4 11 9 Energy Gun 6 | . . . . 1 4 1 Energy Cannon 6 | . . . . . 2 4 Ballistic Gun 16 | 1 5 2 1 1 3 3 Ballistic Cannon . | . . . . . . . Launcher 6 | . 1 . . 2 2 1 Special Weapon . | . . . . . . . Impact Weapon . | . . . . . . . Slashing Weapon . | . . . . . . . Piercing Weapon . | . . . . . . . Special Melee Weapon . | . . . . . . . Unidentified Prototypes 3 | . . . . . . 3 Parts Lost 11 | . . 1 . 4 4 2 Power 1 | . . . . . 1 . Propulsion 6 | . . . . 3 2 1 Utility 2 | . . 1 . . . 1 Weapon 2 | . . . . 1 1 . Highest Loss Streak 2 | . . 1 . 2 1 1 To Critical Strikes . | . . . . . . . Average Slot Usage (%) 93 | . 66 88 95 75 90 99 Engine 7 | . 2 10 12 2 3 8 Treads 20 | . 28 28 28 11 7 23 Wheel 3 | . . . . . 9 2 Flight 1 | . . . . 9 3 . Device 5 | . 10 1 . . 8 5 Storage 8 | . . 10 12 . 7 9 Processor 13 | . 5 14 14 23 19 10 Hackware 4 | . . . . . 1 9 Protection 7 | . . . . . 7 11 Energy Gun 2 | . . . . 4 8 . Energy Cannon 8 | . . . . . 2 17 Ballistic Gun 8 | . 18 21 28 21 7 . Naked Turns . | . . . . . . . Heaviest Build 116 | 3 9 16 16 6 66 116 Greatest Support 62 | 20 40 40 40 40 20 62 Greatest Overweight (x) 36 | . 1 1 . 1 5 36 Average Overweight (x) . | . . . . . 1 1 Largest Inventory Capacity 25 | 8 5 10 10 5 20 25 Average Capacity 17 | 5 5 8 9 5 14 23 Most Carried 25 | 6 5 5 6 5 20 25 Average Carried 15 | 2 3 4 5 5 11 23 Final Capacity 25 | 5 5 10 5 5 20 25 Final Carried 21 | 2 5 5 5 5 19 21 Class Distribution -------------------- 60% | Scavenger-Mutant 39% | Mutant Dominant Class ---------------- Mutant | -10/Materials Mutant | -10/Mines Mutant | -10/Exiles Mutant | -9/Mines Scavenger-Mutant | -8/Materials Scavenger-Mutant | -8/Storage Resources | -11 -10 -10 -10 -9 -8 -8 ----------- Run | Scr Mat Min Exi Min Mat Sto Matter Collected 1691 | 242 69 558 . 144 381 297 Remotely . | . . . . . . . Salvage Created 2803 | 61 98 89 . 220 622 1713 Parts 167 | 1 8 5 . 16 44 93 Haulers Intercepted 8 | . 1 . . . 1 6 Recyclers Shooed 3 | 1 . . . . . 2 Parts Field Recycled . | . . . . . . . Retrieved Matter . | . . . . . . . Parts Self-Destructed . | . . . . . . . Prevented . | . . . . . . . Kills | -11 -10 -10 -10 -9 -8 -8 ------- Run | Scr Mat Min Exi Min Mat Sto Combat Hostiles Destroyed 50 | . 3 2 . 8 10 27 Guns 14 | . 3 2 . 3 4 2 Cannons 23 | . . . . . 2 21 AOE 11 | . . . . 5 2 4 Classes Destroyed 12 | 1 2 1 . 2 5 1 Worker 2 | . . . . . 2 . Builder 4 | . . . . 1 2 1 Tunneler 1 | . . . . . 1 . Hauler 8 | . 1 . . . 1 6 Recycler 2 | 1 . . . . . 1 Watcher 2 | . . . . . . 2 Swarmer 10 | . 3 . . 3 . 4 Grunt 23 | . . 2 . 4 5 12 Brawler 1 | . . . . 1 . . Duelist 2 | . . . . . 1 1 Sentry 13 | . . . . . 3 10 Hunter 1 | . . . . . 1 . Best Kill Streak 7 | 1 2 1 . 6 4 7 Combat Bots Only 7 | . 2 1 . 5 2 7 Max Kills in Single Turn 4 | 1 1 1 . 4 1 4 Gunslinging . | . . . . . . . Exploded 4 | . . . . 3 1 4 Melee . | . . . . . . . Uniques/NPCs Destroyed . | . . . . . . . Combat | -11 -10 -10 -10 -9 -8 -8 -------- Run | Scr Mat Min Exi Min Mat Sto Damage Taken 3344 | . 140 218 . 302 848 1836 Core 719 | . 15 43 . 72 92 497 Absorbed by Shields 5 | . . . . . . 5 Regen/Repaired (Parts) 138 | . . . . . . 138 Core Remaining (%) 74 | 100 . . . 48 . . Volleys Fired 218 | 3 18 11 1 25 59 101 Largest 2 | 2 2 2 1 2 2 2 Hottest 130 | 40 40 40 20 60 128 130 Shots Fired 396 | 6 36 22 1 41 98 192 Gun 188 | 6 36 22 1 38 72 13 Cannon 201 | . . . . . 23 178 Launcher 7 | . . . . 3 3 1 Special . | . . . . . . . Kinetic 132 | 6 36 22 1 26 28 13 Thermal 241 | . . . . 12 51 178 Explosive 7 | . . . . 3 3 1 Electromagnetic 16 | . . . . . 16 . Robot Hit Streak 15 | 2 6 8 . 6 11 15 Robot Miss Streak 6 | 1 6 1 . 3 3 6 Penetration Max . | . . . . . . . Secondary Targets . | . . . . . . . Shots Hit Robots 237 | 4 19 17 . 25 67 105 Core Hits 108 | 2 5 5 . 18 26 52 Critical Kills 1 | . . . . . 1 . Critical Parts Destroyed 1 | . . . . . 1 . Critical Strikes 4 | . . . . . 4 . Burn 1 | . . . . . 1 . Destroy 2 | . . . . . 2 . Corrupt 1 | . . . . . 1 . Melee Attacks . | . . . . . . . Impact . | . . . . . . . Slashing . | . . . . . . . Piercing . | . . . . . . . Sneak Attacks . | . . . . . . . Combat Hostiles . | . . . . . . . Follow-up Attacks . | . . . . . . . Damage Inflicted 5366 | 44 257 181 . 456 1224 3204 Guns 1764 | 44 257 181 . 234 830 218 Cannons 3079 | . . . . . 263 2816 Explosions 514 | . . . . 222 131 161 Melee . | . . . . . . . Ramming 9 | . . . . . . 9 Kinetic 1174 | 44 257 181 . 169 305 218 Thermal 3638 | . . . . 65 757 2816 Explosive 383 | . . . . 222 . 161 Electromagnetic 162 | . . . . . 162 . Impact . | . . . . . . . Slashing . | . . . . . . . Piercing . | . . . . . . . Highest Corruption . | . . . . . . . Average Corruption . | . . . . . . . Corruption Purged . | . . . . . . . Corruption Blocked . | . . . . . . . Overload Shots . | . . . . . . . Overflow Damage 67 | . . . . . . 67 Projectiles 67 | . . . . . . 67 Explosions . | . . . . . . . Melee . | . . . . . . . Knockbacks . | . . . . . . . Impact . | . . . . . . . Kinetic . | . . . . . . . Secondary . | . . . . . . . Self-Inflicted Damage 77 | . . . . . 53 24 Shots 2 | . . . . . 1 1 Rammed 4 | . . . . . 1 3 Targets Rammed 4 | . . . . . 1 3 Kicked . | . . . . . . . Crushed . | . . . . . . . Highest Temperature 911 | . 6 14 . 24 250 911 Average Temperature 135 | . 6 4 . 8 79 170 Received Heat Transfer 1404 | . . 129 . 150 414 711 Effects 31 | . . . . . 2 29 Energy Bleed 3 | . . . . . . 3 Interference 7 | . . . . . 2 5 Matter Decay 4 | . . . . . . 4 Short Circuit 3 | . . . . . . 3 Damage (minor) 2 | . . . . . . 2 Damage (major) 8 | . . . . . . 8 Damage (core) 4 | . . . . . . 4 Siege Activations . | . . . . . . . Robots Corrupted . | . . . . . . . Combat Hostiles . | . . . . . . . Parts Fried 1 | . . . . . 1 . Impact Corruptions . | . . . . . . . Robots Melted 1 | . . . . . 1 . Combat Hostiles 1 | . . . . . 1 . Parts Melted 10 | . . . . . 1 9 Heat Transferred 5346 | . . . . 150 1348 3848 Parts Sabotaged . | . . . . . . . Parts Stolen . | . . . . . . . Parts Stripped . | . . . . . . . Power Chain Reactions 2 | . . . . . 2 . Missiles Intercepted . | . . . . . . . Alert | -11 -10 -10 -10 -9 -8 -8 ------- Run | Scr Mat Min Exi Min Mat Sto Peak Influence 333 | 5 163 103 . 260 216 333 Initial 101 | . 3 63 . . 101 73 Average 128 | 3 102 95 . 127 131 137 Maximum Alert Level 1 | . . . . 1 1 1 Low Security (%) 82 | 100 100 100 . 59 73 85 Level 1 17 | . . . . 40 26 14 Level 2 . | . . . . . . . Level 3 . | . . . . . . . Level 4 . | . . . . . . . Level 5 . | . . . . . . . High Security . | . . . . . . . Max Security . | . . . . . . . Squads Dispatched 9 | . 1 . . . 4 4 Investigation 4 | . . . . . 3 1 Extermination . | . . . . . . . Reinforcement 5 | . 1 . . . 1 3 Assault . | . . . . . . . Garrison . | . . . . . . . Intercept . | . . . . . . . Searches Triggered . | . . . . . . . Construction Impeded 1 | . . . . . . 1 Haulers Reinforced . | . . . . . . . Active Scanning Responses . | . . . . . . . Cargo Convoy Interrupts . | . . . . . . . Stealth | -11 -10 -10 -10 -9 -8 -8 --------- Run | Scr Mat Min Exi Min Mat Sto Distress Signals 7 | . 2 . . . 2 3 Communications Jammed . | . . . . . . . Distress Signals . | . . . . . . . Times Spotted 82 | . 9 2 . 12 19 40 Peak Tracking Total 9 | . 5 2 9 6 5 5 Tactical Retreats 8 | . . . . 3 4 1 Traps | -11 -10 -10 -10 -9 -8 -8 ------- Run | Scr Mat Min Exi Min Mat Sto Traps Triggered 5 | . . . . . . 5 Indirectly . | . . . . . . . Trap Hack Attempts . | . . . . . . . Triggered . | . . . . . . . Disarmed . | . . . . . . . Reprogrammed . | . . . . . . . Reused . | . . . . . . . Traps Extracted . | . . . . . . . Installed . | . . . . . . . Triggered 1 | . . 1 . . . . Machines | -11 -10 -10 -10 -9 -8 -8 ---------- Run | Scr Mat Min Exi Min Mat Sto Machines Disabled 5 | . 1 . 1 . 2 1 Max in Single Turn 1 | . 1 . 1 . 1 1 Garrison Access 1 | . . . . . . 1 Machines Sabotaged . | . . . . . . . Overloaded Fab Kills . | . . . . . . . Hacking | -11 -10 -10 -10 -9 -8 -8 --------- Run | Scr Mat Min Exi Min Mat Sto Machines Accessed 20 | . 4 . 1 . 4 11 Terminals 14 | . 4 . . . 3 7 Fabricators . | . . . . . . . Repair Stations 2 | . . . . . . 2 Recycling Units 1 | . . . . . . 1 Scanalyzers 1 | . . . . . 1 . Garrison Access 1 | . . . . . . 1 Total Hacks 67 | . 21 . 1 . 17 28 Successful 41 | . 14 . 1 . 9 17 Failed 26 | . 7 . . . 8 11 Catastrophic 2 | . 1 . . . 1 . Database Lockouts . | . . . . . . . Manual 41 | . 18 . 1 . 8 14 Terminals 52 | . 21 . . . 10 21 Fabricators . | . . . . . . . Repair Stations 4 | . . . . . . 4 Recycling Units 2 | . . . . . . 2 Scanalyzers 7 | . . . . . 7 . Garrison Access 1 | . . . . . . 1 Terminal Hacks 20 | . 9 . 1 . 2 8 Part Schematic 3 | . 3 . . . . . Robot Analysis 2 | . 2 . . . . . Prototype ID Bank 1 | . 1 . . . . . Open Door 1 | . . . . . . 1 Alert Level 4 | . . . . . 1 3 Unreport Threat 3 | . . . . . 1 2 Locate Traps 3 | . 1 . . . . 2 Hauler Manifests 1 | . 1 . . . . . Zone Layout 1 | . 1 . . . . . EX-Prototype ID Bank 1 | . . . 1 . . . Fabricator Hacks . | . . . . . . . Repair Station Hacks 3 | . . . . . . 3 Scan Component 2 | . . . . . . 2 Repair 1 | . . . . . . 1 Recycling Unit Hacks 1 | . . . . . . 1 Retrieve Components 1 | . . . . . . 1 Scanalyzer 7 | . . . . . 7 . Insert Component 3 | . . . . . 3 . Analyze 4 | . . . . . 4 . Garrison Access Hacks 1 | . . . . . . 1 Seal Access 1 | . . . . . . 1 Unauthorized Hacks 9 | . 5 . . . . 4 Terminals 9 | . 5 . . . . 4 Track 1 | . 1 . . . . . Assimilate 1 | . 1 . . . . . Botnet 6 | . 2 . . . . 4 Operators 1 | . 1 . . . . . Fabricators . | . . . . . . . Repair Stations . | . . . . . . . Recycling Units . | . . . . . . . Scanalyzers . | . . . . . . . Garrison Access . | . . . . . . . Data Cores Recovered . | . . . . . . . Used . | . . . . . . . Hacking Detections 16 | . 4 . . . 4 8 Full Trace Events 5 | . 1 . . . 3 1 Feedback Events . | . . . . . . . Feedback Blocked . | . . . . . . . Robot Schematics Acquired . | . . . . . . . Robots Built . | . . . . . . . Authchips . | . . . . . . . Time . | . . . . . . . Total Robot Build Rating . | . . . . . . . Part Schematics Acquired 6 | . 3 . . . 3 . Parts Built . | . . . . . . . Authchips . | . . . . . . . Time . | . . . . . . . Total Part Build Rating . | . . . . . . . Parts Repaired 1 | . . . . . . 1 Time 26 | . . . . . . 26 Parts Recycled . | . . . . . . . Recycled Matter . | . . . . . . . Retrieved Matter . | . . . . . . . Retrieved Components 10 | . . . . . . 10 Parts Scanalyzed 3 | . . . . . 3 . Part Schematics Acquired 3 | . . . . . 3 . Parts Damaged . | . . . . . . . Bothacking | -11 -10 -10 -10 -9 -8 -8 ------------ Run | Scr Mat Min Exi Min Mat Sto Used RIF Installer . | . . . . . . . Robots Hacked . | . . . . . . . Non-combat . | . . . . . . . Combat . | . . . . . . . Robot Hacks Applied . | . . . . . . . Relay Couplers Released . | . . . . . . . Fabnet Peak Effective % . | . . . . . . . Robots Rewired . | . . . . . . . Allies Hacked . | . . . . . . . Hacks Repelled . | . . . . . . . Allies | -11 -10 -10 -10 -9 -8 -8 -------- Run | Scr Mat Min Exi Min Mat Sto Total Allies 1 | . 1 . . . . . Largest Group 1 | . 1 1 . . . . Highest-Rated Group 10 | . 10 9 . . . . Highest-Rated Ally 10 | . 10 9 . . . . Total Orders . | . . . . . . . Ally Attacks . | . . . . . . . Total Damage . | . . . . . . . Kills . | . . . . . . . Allies Corrupted . | . . . . . . . Allies Melted 1 | . . . . 1 . . Intel | -11 -10 -10 -10 -9 -8 -8 ------- Run | Scr Mat Min Exi Min Mat Sto Robot Analysis Total 2 | . 2 . . . . . Derelict Logs Recovered 3 | . . 2 . 1 . . Drone Launches . | . . . . . . . Drone Recoveries . | . . . . . . . Exploration | -11 -10 -10 -10 -9 -8 -8 ------------- Run | Scr Mat Min Exi Min Mat Sto Turns Passed 4700 | 48 182 415 353 327 1085 2290 Spaces Moved 2523 | 21 180 296 217 307 686 816 Core 291 | . 179 96 . 11 1 4 Treads 1302 | 21 1 200 217 84 127 652 Legs . | . . . . . . . Wheels 528 | . . . . . 368 160 Hover . | . . . . . . . Flight 402 | . . . . 212 190 . Fastest Speed 37 | 160 50 50 160 37 40 110 Average Speed 147 | 160 51 124 160 75 118 224 Slowest Speed 1850 | 160 160 160 160 160 240 1850 Overloaded Moves . | . . . . . . . Propulsion Burnouts . | . . . . . . . Robots Hopped 4 | . . . . 4 . . Cave-ins Triggered . | . . . . . . . Exploration Rate (%) 50 | 4 41 68 61 52 36 93 Regions Visited 6 Branch Regions 4 Pre-discovered Areas 3 | . . 2 . . . 1 Known Exits Taken 1 | . . . . . 1 . Unknown Exits Taken 5 | 1 1 1 1 1 . . Scrap Searched 4 | . . 2 . 2 . . Spaces Dug 47 | . . . . 11 3 33 Terrain Destroyed 149 | . . . . 29 42 78 Melee . | . . . . . . . Projectile 78 | . . . . . 13 65 AOE 71 | . . . . 29 29 13 Terrain Rammed . | . . . . . . . Walls Destroyed . | . . . . . . . Machines Disabled . | . . . . . . . Actions | -11 -10 -10 -10 -9 -8 -8 --------- Run | Scr Mat Min Exi Min Mat Sto Total 3115 | 32 235 324 223 357 858 1086 Wait 159 | . 12 3 . 20 38 86 Move 2511 | 20 179 295 216 300 685 816 Hop 2 | . . . . 2 . . Pick Up 51 | . 5 4 1 . 25 16 Fast Attach 40 | . 4 2 1 6 16 11 Attach 20 | . 5 3 . . 3 9 Detach 11 | . 6 2 . . 1 2 Swap 31 | 3 2 1 . 2 12 11 Drop 60 | 6 4 3 4 2 18 23 Fire 218 | 3 18 11 1 25 59 101 Melee . | . . . . . . . Ram 1 | . . . . . 1 . Kick . | . . . . . . . Crush 3 | . . . . . . 3 Escape Stasis 8 | . . . . . . 8 Rewire . | . . . . . . . Trap . | . . . . . . . Miscellaneous . | . . . . . . . Route ------- -11/Scrapyard -10/Materials -10/Mines (discovered 2 exits: [*Mat] / *Exi) -10/Exiles -9/Mines -8/Materials (discovered 2 exits: Fac / *Sto) -8/Storage (discovered 1 exit: *Fac) History --------- Turn | Location | Event 15 | -11/Scrapyard | Discovered new exit (range 2) 49 | -11/Scrapyard | Entered Materials 190 | -10/Materials | Discovered new exit (range 14) 231 | -10/Materials | Entered Mines 231 | -10/Mines | Accompanied by 1 ally 313 | -10/Mines | Build established: Mutant 316 | -10/Mines | Learned 4 Materials zone layouts 362 | -10/Mines | Learned location of Storage (-8) 431 | -10/Mines | Learned location of Zion (-7) 443 | -10/Mines | Discovered new exit (range 10) 536 | -10/Mines | Deemed a non-threat by the Exiles lab entrance 536 | -10/Mines | Discovered new exit (range 5) 646 | -10/Mines | Entered Exiles 683 | -10/Exiles | Met 8R-AWN 712 | -10/Exiles | Met EX-HEX 771 | -10/Exiles | Met EX-BIN 789 | -10/Exiles | Aligned with FarCom system 790 | -10/Exiles | Given EX-Vault access code 827 | -10/Exiles | Opened EX-Vault 838 | -10/Exiles | Found Superbattery 875 | -10/Exiles | Warned to stay clear of 0b10 Research branches 921 | -10/Exiles | Met EX-DEC 964 | -10/Exiles | Attacked by the Exiles 981 | -10/Exiles | Discovered new exit (range 14) 999 | -10/Exiles | Left Exiles lab with Superbattery 999 | -10/Exiles | Entered Mines 1023 | -9/Mines | Met a Derelict bent on vengeance 1124 | -9/Mines | Learned Materials terminal intel 1253 | -9/Mines | Core integrity fell below 50% 1302 | -9/Mines | Assembled infested the area 1307 | -9/Mines | Assisted by a Guerilla fighting off Assembled 1321 | -9/Mines | Discovered new exit (range 7) 1326 | -9/Mines | Entered Materials 1326 | -8/Materials | Evolved 4 slots: Propulsion x1, Utility x3 1326 | -8/Materials | Discovered new exit (range 9) 1327 | -8/Materials | Identified exit to Storage 1327 | -8/Materials | Identified exit to Factory 1328 | -8/Materials | Loaded intel: 12 terminal locations 1751 | -8/Materials | Build established: Scavenger-Mutant 2411 | -8/Materials | Entered Storage 2473 | -8/Storage | Destroyed 7 combat bots 2492 | -8/Storage | Repaired Lgt. Treads 3502 | -8/Storage | Learned location of Armory (-4) 4196 | -8/Storage | Discovered exit to Factory (range 14) 4430 | -8/Storage | Core integrity fell below 50% 4453 | -8/Storage | Build established: Mutant 4481 | -8/Storage | Core integrity fell below 20% 4702 | -8/Storage | Core destroyed Last Messages --------------- 04462_ Overheating: Matter decay (-23). 04470_ Overheating: Core damaged (-66). 04472_ Adv. Treads broken. 04472_ Overheating: Short circuit. 04476_ Overheating: Matter decay (-17). 04481_ Overheating: Core damaged (-110). 04483_ F-cell Engine broken. 04483_ Overheating: Short circuit. 04487_ Overheating: Hvy. Ion Cannon damaged (-2). 04494_ M-13 Machinist repairs Com. Wheel. 04554_ Dropped Broken F-cell Engine. 04555_ Dropped Broken Adv. Treads. 04556_ Dropped Broken Lgt. Treads. 04562_ Acquired 58 matter. 04566_ R-06 Scavenger collects Broken F-cell Engine. 04569_ R-06 Scavenger collects Broken Lgt. Treads. 04571_ R-06 Scavenger collects Broken Adv. Treads. 04699_ Melee Analysis Suite melted. 04699_ L-31 Rogue destroyed. 04702_ Overheating: Core damaged (-93). Map ----- +----------------------------------------------------+ | | | | | | | | | | | ????#######?????????????????####??#????????????##? | | ????# ]#?????????????????#!!!!#T##????########? | | ?????# #?????????????????# #????# ! ##*# | | ???### "" ###################!!!!# #????#! #[%! | | #### %"" + ####??# #????# !#!!! | | ######[T" # ######## #######+###???#! #!!! | | ## % # "" # #??????# #T##### / #!! | | ## %%# # #??????# + # | | ## ###### #??????# #####+##### #### # | | ## ######+####???# # ## #??# ##+# | | ?# # #???# # ## "#?# ! ## # | | ?# # "" #???# # ""T"" ## ########## # | | ?# # "G """ ##### # """"" + | | ?# # "" """ """## ###########################!# | | ?# +% """ R"## ?????????? #?????????????#=# | | ## # % """#? ??????????# #?????????????#*# | | #" # ####? ??????????# #????????????##%# | | #T # #???? ?########## #?????????????#[# | | #" ###########???? ?# # # #?##??????????#=# | | ## # """ """?????# ###; # ############?? | | ?# # """ """?????# /@ + | | ?# + """ """?????# ###% # ####??????? | | ?# # #??????# # # #??????????# | | ?# # #??????### # #?########## | | ?# #? #????????######## # + | | ?# #? #????????# # # == #?## | | ?# #?? +????????# + + ! ] ! #??? | | ?# ###########??###???# # # = #??? | | ?# # ####"##### # ############## | | ?# # """"" + %+ # #????????# | | ?# # "%! =" #####"#### # %#????????# """ | | ?# + "!!!]" #???##########"## ########## "Y" | | ?# # """ "" #??# + +!"=" | | ?# # #??# # ##+##########[[!! | | ?# + #??# # # ##??????#[%! | | ?# # #??# ?+ #^ ##?????## | | ?# ###########??###########"####* *##?????## | | ?# #?????????????????????#""##?#**[#??????## | | ?# #?????????????????????# #?#####???????##### | | ?# #?????????????????????# #####%############ | | ?# #?????????????????????# ## *!["T" # # | | ?# #?????????????????????# ## # + | | ?# #??????????######?????# ## !!! """ # #% | | ?# #??????????# ####### ## !! """ # """%+ | | ?# #??????????# ## !! """ # """ # | +----------------------------------------------------+ Best States ------------- Heat Dissipation 45 Energy Generation 19 Energy Capacity 500 Matter Stores 300 Matter Capacity 300 Sight Range 18 Robot Scan Range 15 Terrain Scan Density 110 Armor Coverage 300 Evasion (%) 62 Recoil Reduction 3 Offensive Hacking 10 Item Schematics ----------------- Hcp. Storage Unit | -10/Materials | Hacked Med. Storage Unit | -10/Materials | Hacked Heat Sink | -10/Materials | Hacked Grenade Launcher | -8/Materials | Scanalyzed Hcp. Matter Pod | -8/Materials | Scanalyzed Flight Unit | -8/Materials | Scanalyzed Robot Schematics ------------------ None Fabricated ------------ Nothing Alien Tech Used ----------------- None Achievements -------------- None Challenges ------------ None Game ------ Seed MagneticSuperchargedCorpse Manual? 0 Play Time 00:38:50 Cumulative 167.2 hours Start 2022.12.25 @ 20:22:35 End 2022.12.25 @ 20:58:27 Sessions 1 Manual Loads 0 Difficulty Rogue Special Mode None Game No. 223 Rogue 223 Adventurer 0 Explorer 0 Win Type - Total 2 Types 1/0/0/1/0/0/0/0/0 Lore% 77 Gallery% 80 Achievement% 64 Wizard Run 0 Options --------- ASCII 0 Keyboard 0 Movement Numpad Keybinds 0 Fullscreen 2 Font 18/SmallcapsGlow Map View 76x50 Tactical HUD 1 Map Filters NONE Filters NONE Steam 1 RUN: ddc556fd-12d0-4d15-b462-2003f1b3a049